Cogmind - Beta 14 @@@ ROGUE MODE // 2024.08.27 @ 18:29:17 Player: Agave Result: Destroyed by S-43 Plague with Heavy Machine Gun Performance ------------- Evolutions (7) 3500 Regions Visited (12) 2400 Robots Destroyed (48) 240 Value Destroyed (1299) 1299 Prototype IDs (2) 40 Alien Tech Used (0) 0 Bonus (513) 513 TOTAL SCORE: 7992 Bonus ------- High Alert Combat Kills 13 Entered DSFs 500 Cogmind --------- Core Integrity 0/1300 Matter 38/300 Energy 100/100 System Corruption 0% Temperature Cool (0) Movement Core (50) Location -3/Research Parts ------- > --- POWER (2) -------- (None) > --- PROPULSION (6) --- (None) > --- UTILITY (9) ------ (None) > --- WEAPON (4) ------- (None) > --- INVENTORY (5) ---- Micro Antimatter Reactor Improved Cryofiber Web Compact Battery (200) Improved Sensor Array Peak State ------------ > --- POWER ------------ Micro Nuclear Core Micro Fission Core > --- PROPULSION ------- Xenon Bombardment Thruster Nuclear Pulse Array Nuclear Pulse Array Impulse Thruster > --- UTILITY ---------- Small Storage Unit Improved Terrain Scanner Seismic Detector Transmission Jammer Advanced ECM Suite Improved Propulsion Shielding Remote Force Field Hacking Suite > --- WEAPON ----------- Hypervelocity Gauss Rifle Heavy Flail > --- INVENTORY -------- Impulse Thruster Improved Cryofiber Web Improved Sensor Array Stasis Canceller Improved Power Shielding Improved Concussive RPG [Rating: 80] Favorites ----------- Power Micro Nuclear Core Engine Light Ion Engine Power Core Micro Nuclear Core Reactor Micro Antimatter Reactor Propulsion Armored Wheel Treads Light Treads Leg Aluminum Leg Wheel Armored Wheel Hover Unit Combat Airjet Flight Unit Xenon Bombardment Thruster Utility Seismic Detector Device Seismic Detector Storage Small Storage Unit Processor Improved Targeting Computer Hackware Hacking Suite Protection Improved Propulsion Shielding Weapon Heavy Flail Energy Gun Medium Laser Energy Cannon Particle Cannon Ballistic Gun Light Assault Rifle Launcher Mini Grenade Launcher Impact Weapon Heavy Flail Build | -11 -10 -9 -9 -8 -7 -7 -6 -5 -4 -4 -4 -3 ------- Run | Yrd Mat Mat Min Mat Fac DSF Fac Fac Fac Was Fac Res Slots Evolved 14 | . . 2 . 2 2 . 2 2 2 . . 2 Power 1 | . . . . . . . 1 . . . . . Propulsion 4 | . . 1 . 1 . . 1 1 . . . . Utility 7 | . . 1 . 1 1 . . 1 2 . . 1 Weapon 2 | . . . . . 1 . . . . . . 1 Parts Attached 85 | . 7 11 3 18 8 1 3 19 5 1 2 7 Power 11 | . 1 1 1 2 . 1 1 1 . 1 . 2 Engine 3 | . . 1 1 1 . . . . . . . . Core 6 | . 1 . . 1 . 1 1 1 . 1 . . Reactor 2 | . . . . . . . . . . . . 2 Propulsion 38 | . 5 4 2 8 . . 1 13 1 . 2 2 Treads 5 | . 2 2 . . . . . . . . . 1 Leg . | . . . . . . . . . . . . . Wheel 5 | . 3 2 . . . . . . . . . . Hover 12 | . . . 2 4 . . . 6 . . . . Flight 16 | . . . . 4 . . 1 7 1 . 2 1 Utility 23 | . 1 3 . 4 5 . 1 4 4 . . 1 Device 14 | . 1 1 . 2 3 . 1 1 4 . . 1 Storage 2 | . . 1 . . . . . 1 . . . . Processor 3 | . . 1 . . 1 . . 1 . . . . Hackware 1 | . . . . 1 . . . . . . . . Protection 3 | . . . . 1 1 . . 1 . . . . Artifact . | . . . . . . . . . . . . . Weapon 13 | . . 3 . 4 3 . . 1 . . . 2 Energy Gun 3 | . . 1 . 1 . . . . . . . 1 Energy Cannon 3 | . . 1 . 2 . . . . . . . . Ballistic Gun 3 | . . . . . 2 . . 1 . . . . Ballistic Cannon . | . . . . . . . . . . . . . Launcher 3 | . . 1 . . 1 . . . . . . 1 Special Weapon . | . . . . . . . . . . . . . Impact Weapon 1 | . . . . 1 . . . . . . . . Slashing Weapon . | . . . . . . . . . . . . . Piercing Weapon . | . . . . . . . . . . . . . Special Melee Weapon . | . . . . . . . . . . . . . Unidentified Prototypes 1 | . . . . . . . . . . . . 1 Parts Lost 28 | . . 6 4 4 . 1 . 2 1 3 . 7 Power 8 | . . 1 1 1 . 1 . 1 . 1 . 2 Propulsion 10 | . . 1 2 1 . . . . . 2 . 4 Utility 5 | . . 2 . 1 . . . . 1 . . 1 Weapon 5 | . . 2 1 1 . . . 1 . . . . Highest Loss Streak 6 | . . 3 4 3 . 1 . 1 1 3 . 6 To Critical Strikes 1 | . . . . . . . . . . 1 . . Average Slot Usage (%) 72 | . 90 88 60 72 99 100 93 82 74 23 1 6 Engine 3 | . 9 3 7 6 . . . . . . . . Core 5 | . 4 7 . 1 7 7 13 10 10 3 . . Treads 1 | . 3 4 6 . . . . . . . . . Wheel 7 | . 21 26 . . . . . . . . . . Hover 5 | . . . 9 20 . . . 3 . . . . Flight 6 | . . . . . 30 30 33 21 21 5 1 2 Device 11 | . 5 13 . 8 21 23 25 21 20 8 . . Storage 6 | . 14 10 11 9 . . . 1 5 1 . . Processor 3 | . . 4 11 6 . . . 3 . . . . Hackware 1 | . . . . 1 7 7 6 5 5 1 . . Protection 1 | . . . . 3 7 7 . . 4 . . . Energy Gun 4 | . 14 7 3 3 . . . 1 . . . . Energy Cannon 1 | . . 1 . 7 . . . . . . . . Ballistic Gun 3 | . 14 7 . . 6 7 . 1 2 . . . Launcher 2 | . . 1 11 1 6 7 6 1 . . . . Impact Weapon 2 | . . . . 2 7 7 6 5 5 1 . . Peak Build Rating 80 | 6 12 15 16 34 44 45 52 69 80 73 12 43 Average Rating 25 | 6 8 13 11 20 42 44 48 58 72 24 3 12 On Entrance 28 | 6 6 11 10 16 34 44 45 49 65 73 2 12 Naked Turns 185 | . . . . . . . . . . 34 47 104 Heaviest Build 36 | 11 14 27 27 36 24 24 26 31 35 33 . 18 Greatest Support 75 | 20 40 40 40 36 24 24 29 65 39 39 12 75 Greatest Overweight (x) 10 | . . . 6 10 . . . 4 . 1 . 2 Average Overweight (x) . | . . . 1 . . . . . . . . . Largest Inventory Capacity 15 | 8 8 15 15 15 15 5 5 8 8 8 5 5 Average Capacity 9 | 8 8 8 15 15 5 5 5 5 8 5 5 5 Most Carried 15 | 6 8 8 9 15 12 5 5 6 8 8 5 5 Average Carried 6 | 6 6 5 6 10 5 4 4 5 7 5 5 3 Final Capacity 15 | 8 8 15 15 15 5 5 5 8 8 5 5 5 Final Carried 13 | 6 7 6 6 13 5 5 5 6 8 5 5 4 Class Distribution -------------------- 64% | Mutant 12% | Sprinter 11% | Infiltrator-Sprinter 8% | Scavenger-Mutant 3% | Ninja Dominant Class ---------------- Mutant | -10/Materials Mutant | -9/Materials Mutant | -9/Mines Mutant | -8/Materials Sprinter | -7/Factory Sprinter | -7/DSF Sprinter | -6/Factory Infiltrator-Sprinter | -5/Factory Infiltrator-Sprinter | -4/Factory Mutant | -4/Waste Mutant | -4/Factory Mutant | -3/Research Resources | -11 -10 -9 -9 -8 -7 -7 -6 -5 -4 -4 -4 -3 ----------- Run | Yrd Mat Mat Min Mat Fac DSF Fac Fac Fac Was Fac Res Matter Collected 985 | 206 97 194 137 130 56 . . 158 7 . . . Remotely . | . . . . . . . . . . . . . Salvage Created 1520 | 115 194 520 65 377 . . . 249 . . . . Parts 90 | 2 8 30 9 30 . . . 11 . . . . Haulers Intercepted . | . . . . . . . . . . . . . Recyclers Shooed 2 | 1 . . . . . . . 1 . . . . Parts Field Recycled . | . . . . . . . . . . . . . Retrieved Matter . | . . . . . . . . . . . . . Parts Self-Destructed . | . . . . . . . . . . . . . Prevented . | . . . . . . . . . . . . . Kills | -11 -10 -9 -9 -8 -7 -7 -6 -5 -4 -4 -4 -3 ------- Run | Yrd Mat Mat Min Mat Fac DSF Fac Fac Fac Was Fac Res Combat Hostiles Destroyed 52 | . 4 15 23 9 . . . 1 . . . . Melee 1 | . . . . 1 . . . . . . . . Guns 10 | . 4 5 . . . . . 1 . . . . Cannons 7 | . . 3 . 4 . . . . . . . . AOE 33 | . . 6 23 4 . . . . . . . . Classes Destroyed 11 | 2 2 4 1 2 . . . . . . . . Worker 3 | . . 1 . 2 . . . . . . . . Builder 3 | . . 1 . 2 . . . . . . . . Tunneler 2 | 1 . . . . . . . 1 . . . . Recycler 3 | 1 . 1 . . . . . 1 . . . . Operator 1 | . . . . 1 . . . . . . . . Watcher 3 | . 1 1 . . . . . 1 . . . . Swarmer 12 | . . 4 4 4 . . . . . . . . Grunt 15 | . 4 8 . 2 . . . 1 . . . . Brawler 1 | . . . . 1 . . . . . . . . Sentry 5 | . . 3 . 2 . . . . . . . . Assembled 19 | . . . 19 . . . . . . . . . Best Kill Streak 19 | 2 2 9 19 5 . . . 4 . . . . Combat Bots Only 19 | . 1 5 19 5 . . . 1 . . . . Max Kills in Single Turn 6 | 1 1 5 6 2 . . . 2 . . . . Gunslinging . | . . . . . . . . . . . . . Exploded 6 | . . 4 6 2 . . . . . . . . Melee 1 | . . . . 1 . . . . . . . . Uniques/NPCs Destroyed . | . . . . . . . . . . . . . Combat | -11 -10 -9 -9 -8 -7 -7 -6 -5 -4 -4 -4 -3 -------- Run | Yrd Mat Mat Min Mat Fac DSF Fac Fac Fac Was Fac Res Hostile Shots Fired 449 | . 25 104 34 27 . 33 9 11 51 2 . 153 Missed 158 | . 6 33 8 8 . 15 6 4 28 . . 50 Damage Taken 5296 | . 255 937 408 510 . 345 29 181 317 105 . 2209 Core 1950 | . 127 109 148 100 . 48 6 . 57 48 . 1307 Absorbed by Shields 225 | . . 111 . 14 . 91 . . 9 . . . Redirected to Shielding 155 | . . . . . . 48 . 38 69 . . . Ignored by Resistances 23 | . . . . . . . . . . . . 23 Regen/Repaired (Parts) 31 | . 13 . . . . . . . 18 . . . Core Remaining (%) 80 | 100 49 . 35 81 . 93 99 100 . . 90 . Volleys Fired 138 | 6 27 67 12 16 . . . 9 . . . 1 Largest 2 | 2 2 2 1 2 . . . 1 . . . 1 Hottest 136 | 70 70 124 30 136 . . . 33 . . . . Shots Fired 202 | 12 54 90 12 24 . . . 9 . . . 1 Gun 155 | 12 54 79 . 1 . . . 9 . . . . Cannon 26 | . . 5 . 21 . . . . . . . . Launcher 21 | . . 6 12 2 . . . . . . . 1 Special . | . . . . . . . . . . . . . Kinetic 93 | 6 27 54 . . . . . 6 . . . . Thermal 88 | 6 27 30 . 22 . . . 3 . . . . Explosive 21 | . . 6 12 2 . . . . . . . 1 Electromagnetic . | . . . . . . . . . . . . . Robot Hit Streak 17 | 4 15 17 2 10 . . . 3 . . . . Robot Miss Streak 4 | 2 3 3 4 3 . . . 1 . . . 1 Penetration Max . | . . . . . . . . . . . . . Secondary Targets . | . . . . . . . . . . . . . Shots Hit Robots 139 | 6 35 65 3 23 . . . 7 . . . . Core Hits 108 | 3 12 35 37 15 . . . 4 . . . 2 Critical Kills 1 | . . . . . . . . 1 . . . . Critical Parts Destroyed 2 | . . . . . . . . 2 . . . . Critical Strikes 9 | 1 2 3 . . . . . 3 . . . . Burn 6 | 1 2 3 . . . . . . . . . . Destroy 2 | . . . . . . . . 2 . . . . Smash 1 | . . . . . . . . 1 . . . . Melee Attacks 33 | . . . . 8 2 . 3 5 15 . . . Impact 33 | . . . . 8 2 . 3 5 15 . . . Slashing . | . . . . . . . . . . . . . Piercing . | . . . . . . . . . . . . . Sneak Attacks 4 | . . . . 3 . . . 1 . . . . Combat Hostiles . | . . . . . . . . . . . . . Follow-up Attacks . | . . . . . . . . . . . . . Damage Inflicted 4668 | 60 350 1408 1509 963 . . . 276 . . . 102 Guns 999 | 60 350 521 . 18 . . . 50 . . . . Cannons 414 | . . 104 . 310 . . . . . . . . Explosions 2791 | . . 783 1509 263 . . . 146 . . . 90 Melee 452 | . . . . 372 . . . 80 . . . . Ramming 12 | . . . . . . . . . . . . 12 Kinetic 529 | 35 150 312 . . . . . 32 . . . . Thermal 1325 | 25 200 608 . 328 . . . 164 . . . . Explosive 2350 | . . 488 1509 263 . . . . . . . 90 Electromagnetic . | . . . . . . . . . . . . . Impact 452 | . . . . 372 . . . 80 . . . . Slashing . | . . . . . . . . . . . . . Piercing . | . . . . . . . . . . . . . Highest Corruption 17 | . . 3 3 9 . . . . 1 17 17 . Average Corruption 6 | . . 2 3 9 . . . . 1 9 17 . Corruption Purged . | . . . . . . . . . . . . . Corruption Blocked . | . . . . . . . . . . . . . Effects 17 | . . 1 3 5 . . . . . 6 2 . Message Errors 2 | . . 1 . . . . . . . 1 . . Matter Fused 3 | . . . 2 1 . . . . . . . . Heat Flow Errors 1 | . . . . . . . . . . . 1 . Energy Discharges 1 | . . . 1 . . . . . . . . . Parts Rejected 1 | . . . . . . . . . . 1 . . Parts Fused 1 | . . . . 1 . . . . . . . . Data Loss (minor) 6 | . . . . 3 . . . . . 2 1 . Misdirections 2 | . . . . . . . . . . 2 . . Overload Shots . | . . . . . . . . . . . . . Overflow Damage 526 | . . 98 49 233 . . . 146 . . . . Projectiles . | . . . . . . . . . . . . . Explosions 213 | . . 98 49 . . . . 66 . . . . Melee 313 | . . . . 233 . . . 80 . . . . Knockbacks 2 | . . . . 1 . . . 1 . . . . Impact 2 | . . . . 1 . . . 1 . . . . Kinetic . | . . . . . . . . . . . . . Secondary . | . . . . . . . . . . . . . Self-Inflicted Damage 300 | . . 127 113 . . . . 55 . . . 5 Shots 6 | . . 2 3 . . . . 1 . . . . Rammed 4 | . . . . . . . . . . . . 4 Targets Rammed 4 | . . . . . . . . . . . . 4 Kicked . | . . . . . . . . . . . . . Crushed . | . . . . . . . . . . . . . Highest Temperature 335 | 60 296 335 26 234 . . 145 205 . . 215 292 Average Temperature 78 | 27 97 72 16 83 . . 74 64 . . 129 132 Received Heat Transfer 1353 | . 201 321 80 189 . 6 12 36 . . . 508 Siege Activations . | . . . . . . . . . . . . . Robots Corrupted 2 | . . . . 1 . . . 1 . . . . Combat Hostiles . | . . . . . . . . . . . . . Parts Fried 5 | . . . . 2 . . . 3 . . . . Impact Corruptions 10 | . . . . 8 . . . 2 . . . . Robots Melted 1 | . . 1 . . . . . . . . . . Combat Hostiles 1 | . . 1 . . . . . . . . . . Parts Melted 2 | . . 1 . 1 . . . . . . . . Heat Transferred 2803 | 148 740 1149 . 592 . . . 174 . . . . Parts Sabotaged . | . . . . . . . . . . . . . Parts Stolen . | . . . . . . . . . . . . . Parts Stripped . | . . . . . . . . . . . . . Power Chain Reactions . | . . . . . . . . . . . . . Alert | -11 -10 -9 -9 -8 -7 -7 -6 -5 -4 -4 -4 -3 ------- Run | Yrd Mat Mat Min Mat Fac DSF Fac Fac Fac Was Fac Res Peak Influence 502 | 10 188 502 391 425 77 61 49 304 238 103 83 109 Initial 195 | . 6 79 195 146 55 56 31 23 148 83 68 43 Average 186 | 4 88 308 375 245 66 57 32 73 185 94 79 41 Maximum Alert Level 2 | . . 2 1 2 . . . 1 1 . . . Low Security (%) 60 | 100 100 16 . 45 100 100 100 87 63 100 100 100 Level 1 32 | . . 60 99 40 . . . 12 36 . . . Level 2 7 | . . 23 . 13 . . . . . . . . Level 3 . | . . . . . . . . . . . . . Level 4 . | . . . . . . . . . . . . . Level 5 . | . . . . . . . . . . . . . High Security . | . . . . . . . . . . . . . Max Security . | . . . . . . . . . . . . . Squads Dispatched 6 | . . 2 . . . . . . 2 . 1 1 Investigation 2 | . . 1 . . . . . . 1 . . . Extermination . | . . . . . . . . . . . . . Reinforcement 4 | . . 1 . . . . . . 1 . 1 1 Assault . | . . . . . . . . . . . . . Garrison . | . . . . . . . . . . . . . Intercept . | . . . . . . . . . . . . . Searches Triggered . | . . . . . . . . . . . . . Construction Impeded . | . . . . . . . . . . . . . Haulers Reinforced . | . . . . . . . . . . . . . Active Scanning Responses . | . . . . . . . . . . . . . Cargo Convoy Interrupts . | . . . . . . . . . . . . . Stealth | -11 -10 -9 -9 -8 -7 -7 -6 -5 -4 -4 -4 -3 --------- Run | Yrd Mat Mat Min Mat Fac DSF Fac Fac Fac Was Fac Res Distress Signals 5 | . 2 2 . . . . . . 1 . . . Communications Jammed 1 | . . . . . . . . 1 . . . . Distress Signals 1 | . . . . . . . . 1 . . . . Times Spotted 111 | . 8 22 23 14 . 4 5 4 7 7 1 16 Peak Tracking Total 20 | . 4 8 20 5 . 3 5 2 7 6 1 10 Tactical Retreats 11 | . 3 1 . 1 . 1 . 1 . . . 4 Traps | -11 -10 -9 -9 -8 -7 -7 -6 -5 -4 -4 -4 -3 ------- Run | Yrd Mat Mat Min Mat Fac DSF Fac Fac Fac Was Fac Res Traps Triggered 10 | . . 3 . 2 1 2 . . 2 . . . Indirectly . | . . . . . . . . . . . . . Trap Hack Attempts . | . . . . . . . . . . . . . Triggered . | . . . . . . . . . . . . . Disarmed . | . . . . . . . . . . . . . Reprogrammed . | . . . . . . . . . . . . . Reused . | . . . . . . . . . . . . . Traps Extracted . | . . . . . . . . . . . . . Installed . | . . . . . . . . . . . . . Triggered . | . . . . . . . . . . . . . Machines | -11 -10 -9 -9 -8 -7 -7 -6 -5 -4 -4 -4 -3 ---------- Run | Yrd Mat Mat Min Mat Fac DSF Fac Fac Fac Was Fac Res Machines Disabled 20 | . . 4 5 . . . . 11 . . . . Max in Single Turn 10 | . . 2 3 . . . . 10 . . . . Garrison Access 3 | . . . . 1 1 . 1 . . . . . Machines Repaired . | . . . . . . . . . . . . . Machines Dismantled . | . . . . . . . . . . . . . Machines Sabotaged . | . . . . . . . . . . . . . Overloaded Fab Kills . | . . . . . . . . . . . . . Hacking | -11 -10 -9 -9 -8 -7 -7 -6 -5 -4 -4 -4 -3 --------- Run | Yrd Mat Mat Min Mat Fac DSF Fac Fac Fac Was Fac Res Machines Accessed 21 | . 1 2 . 3 4 . 2 5 3 . . 1 Terminals 7 | . . 2 . 1 2 . . 1 . . . 1 Fabricators . | . . . . . . . . . . . . . Repair Stations 3 | . 1 . . . . . . 1 1 . . . Recycling Units 2 | . . . . . . . . 1 1 . . . Scanalyzers 4 | . . . . 1 1 . 1 . 1 . . . Garrison Access 5 | . . . . 1 1 . 1 2 . . . . Total Hacks 53 | . 2 3 . 10 7 . 5 10 12 . . 4 Successful 28 | . 2 . . 7 4 . 5 2 7 . . 1 Failed 25 | . . 3 . 3 3 . . 8 5 . . 3 Catastrophic 4 | . . 1 . . . . . 3 . . . . Database Lockouts . | . . . . . . . . . . . . . Manual 6 | . . 1 . 2 . . . 2 . . . 1 Terminals 19 | . . 3 . 5 4 . . 3 . . . 4 Fabricators . | . . . . . . . . . . . . . Repair Stations 7 | . 2 . . . . . . 1 4 . . . Recycling Units 6 | . . . . . . . . 2 4 . . . Scanalyzers 14 | . . . . 4 2 . 4 . 4 . . . Garrison Access 7 | . . . . 1 1 . 1 4 . . . . Terminal Hacks 5 | . . . . 3 1 . . . . . . 1 Open DSF 1 | . . . . . 1 . . . . . . . Alert Level 1 | . . . . 1 . . . . . . . . Unreport Threat 2 | . . . . 1 . . . . . . . 1 Dispatch Records 1 | . . . . 1 . . . . . . . . Fabricator Hacks . | . . . . . . . . . . . . . Repair Station Hacks 5 | . 2 . . . . . . 1 2 . . . Scan Component 2 | . 1 . . . . . . . 1 . . . Repair 2 | . 1 . . . . . . . 1 . . . Refit 1 | . . . . . . . . 1 . . . . Recycling Unit Hacks 2 | . . . . . . . . 1 1 . . . Retrieve Matter 2 | . . . . . . . . 1 1 . . . Scanalyzer 13 | . . . . 3 2 . 4 . 4 . . . Insert Component 6 | . . . . 1 1 . 2 . 2 . . . Analyze 7 | . . . . 2 1 . 2 . 2 . . . Garrison Access Hacks 3 | . . . . 1 1 . 1 . . . . . Seal Access 3 | . . . . 1 1 . 1 . . . . . Unauthorized Hacks . | . . . . . . . . . . . . . Terminals . | . . . . . . . . . . . . . Fabricators . | . . . . . . . . . . . . . Repair Stations . | . . . . . . . . . . . . . Recycling Units . | . . . . . . . . . . . . . Scanalyzers . | . . . . . . . . . . . . . Garrison Access . | . . . . . . . . . . . . . Data Cores Recovered 1 | . . . . 1 . . . . . . . . Used . | . . . . . . . . . . . . . Hacking Detections 17 | . 1 2 . 2 2 . . 5 3 . . 2 Full Trace Events 2 | . . . . 1 . . . . 1 . . . Feedback Events . | . . . . . . . . . . . . . Feedback Blocked . | . . . . . . . . . . . . . Robot Schematics Acquired . | . . . . . . . . . . . . . Robots Built . | . . . . . . . . . . . . . Authchips . | . . . . . . . . . . . . . Time . | . . . . . . . . . . . . . Total Robot Build Rating . | . . . . . . . . . . . . . Part Schematics Acquired 6 | . . . . 1 1 . 2 . 2 . . . Parts Built . | . . . . . . . . . . . . . Authchips . | . . . . . . . . . . . . . Time . | . . . . . . . . . . . . . Total Part Build Rating . | . . . . . . . . . . . . . Parts Repaired 2 | . 1 . . . . . . . 1 . . . Time 54 | . 32 . . . . . . . 22 . . . Parts Recycled . | . . . . . . . . . . . . . Recycled Matter . | . . . . . . . . . . . . . Retrieved Matter . | . . . . . . . . . . . . . Retrieved Components . | . . . . . . . . . . . . . Parts Scanalyzed 6 | . . . . 1 1 . 2 . 2 . . . Part Schematics Acquired 6 | . . . . 1 1 . 2 . 2 . . . Parts Damaged . | . . . . . . . . . . . . . Bothacking | -11 -10 -9 -9 -8 -7 -7 -6 -5 -4 -4 -4 -3 ------------ Run | Yrd Mat Mat Min Mat Fac DSF Fac Fac Fac Was Fac Res Used RIF Installer . | . . . . . . . . . . . . . Robots Hacked . | . . . . . . . . . . . . . Non-combat . | . . . . . . . . . . . . . Combat . | . . . . . . . . . . . . . Robot Hacks Applied . | . . . . . . . . . . . . . Relay Couplers Released . | . . . . . . . . . . . . . Fabnet Peak Effective % . | . . . . . . . . . . . . . Robots Rewired . | . . . . . . . . . . . . . Allies Hacked . | . . . . . . . . . . . . . Hacks Repelled . | . . . . . . . . . . . . . Allies | -11 -10 -9 -9 -8 -7 -7 -6 -5 -4 -4 -4 -3 -------- Run | Yrd Mat Mat Min Mat Fac DSF Fac Fac Fac Was Fac Res Total Allies . | . . . . . . . . . . . . . Largest Group . | . . . . . . . . . . . . . Highest-Rated Group . | . . . . . . . . . . . . . Highest-Rated Ally . | . . . . . . . . . . . . . Total Orders . | . . . . . . . . . . . . . Ally Attacks . | . . . . . . . . . . . . . Total Damage . | . . . . . . . . . . . . . Kills . | . . . . . . . . . . . . . Allies Corrupted . | . . . . . . . . . . . . . Allies Melted . | . . . . . . . . . . . . . Intel | -11 -10 -9 -9 -8 -7 -7 -6 -5 -4 -4 -4 -3 ------- Run | Yrd Mat Mat Min Mat Fac DSF Fac Fac Fac Was Fac Res Robot Analysis Total . | . . . . . . . . . . . . . Derelict Logs Recovered . | . . . . . . . . . . . . . Drone Launches . | . . . . . . . . . . . . . Drone Recoveries . | . . . . . . . . . . . . . Exploration | -11 -10 -9 -9 -8 -7 -7 -6 -5 -4 -4 -4 -3 ------------- Run | Yrd Mat Mat Min Mat Fac DSF Fac Fac Fac Was Fac Res Turns Passed 3129 | 34 342 638 284 610 194 54 71 302 186 118 56 240 Spaces Moved 3292 | 15 201 367 145 368 280 106 203 587 374 224 110 312 Core 408 | . . . 17 10 . . . . . 107 93 181 Treads 156 | . 22 63 44 . . . . . . . . 27 Legs 44 | 15 29 . . . . . . . . . . . Wheels 454 | . 150 304 . . . . . . . . . . Hover 463 | . . . 84 351 . . . 28 . . . . Flight 1767 | . . . . 7 280 106 203 559 374 117 17 104 Fastest Speed 27 | 120 90 90 147 59 31 31 27 27 29 31 37 34 Average Speed 65 | 120 101 102 174 125 31 31 27 31 30 50 48 64 Slowest Speed 550 | 120 160 160 350 550 31 31 27 360 31 100 50 200 Overloaded Moves . | . . . . . . . . . . . . . Propulsion Burnouts . | . . . . . . . . . . . . . Robots Hopped 1 | . . . . . . . 1 . . . . . Cave-ins Triggered 1 | . . . . 1 . . . . . . . . Exploration Rate (%) 27 | 3 25 27 37 34 6 75 6 21 8 97 3 14 Regions Visited 12 Branch Regions 1 Pre-discovered Areas . | . . . . . . . . . . . . . Known Exits Taken 1 | . . . . . 1 . . . . . . . Unknown Exits Taken 8 | 1 1 1 1 1 . . 1 1 . . 1 . Scrap Searched . | . . . . . . . . . . . . . Spaces Dug 27 | . . . . 3 2 . 3 4 15 . . . Terrain Destroyed 235 | . . 79 76 24 2 . 3 30 15 . . 6 Melee 27 | . . . . 3 2 . 3 4 15 . . . Projectile . | . . . . . . . . . . . . . AOE 208 | . . 79 76 21 . . . 26 . . . 6 Terrain Rammed . | . . . . . . . . . . . . . Walls Destroyed . | . . . . . . . . . . . . . Machines Disabled . | . . . . . . . . . . . . . Actions | -11 -10 -9 -9 -8 -7 -7 -6 -5 -4 -4 -4 -3 --------- Run | Yrd Mat Mat Min Mat Fac DSF Fac Fac Fac Was Fac Res Total 4028 | 20 290 551 164 481 387 126 212 686 424 227 111 349 Wait 333 | . 43 95 2 37 66 . 2 43 22 3 . 20 Move 3279 | 14 200 366 144 367 279 105 200 586 374 223 109 312 Hop 1 | . . . . . . . 1 . . . . . Pick Up 69 | . 7 9 3 26 3 2 2 8 5 . . 4 Fast Attach 22 | . 1 1 . 1 2 . . 11 1 1 2 2 Attach 44 | . 2 6 3 13 5 1 2 5 2 . . 5 Detach 1 | . . . . . . . . . 1 . . . Swap 19 | . 4 4 . 4 1 . 1 3 2 . . . Drop 50 | . 6 3 . 9 11 1 1 16 2 . . 1 Fire 138 | 6 27 67 12 16 . . . 9 . . . 1 Melee 33 | . . . . 8 2 . 3 5 15 . . . Ram 3 | . . . . . . . . . . . . 3 Kick . | . . . . . . . . . . . . . Crush 1 | . . . . . . . . . . . . 1 Escape Stasis 35 | . . . . . 18 17 . . . . . . Rewire . | . . . . . . . . . . . . . Trap . | . . . . . . . . . . . . . Miscellaneous . | . . . . . . . . . . . . . Route ------- -11/Scrapyard -10/Materials -9/Materials -9/Mines -8/Materials -7/Factory -7/DSF -6/Factory -5/Factory -4/Factory -4/Waste -4/Factory -3/Research History --------- Turn | Location | Event 7 | -11/Scrapyard | Discovered new exit (range 3) 35 | -11/Scrapyard | Entered Materials 261 | -10/Materials | Core integrity fell below 50% 326 | -10/Materials | Build established: Mutant 339 | -10/Materials | Repaired Arm. Wheel 372 | -10/Materials | Discovered new exit (range 6) 377 | -10/Materials | Entered another Materials area 377 | -9/Materials | Evolved 2 slots: Propulsion x1, Utility x1 867 | -9/Materials | Lost 3 parts (1p1u1w) 931 | -9/Materials | Discovered new exit (range 6) 1015 | -9/Materials | Entered Mines 1089 | -9/Mines | Assembled infested the area 1106 | -9/Mines | Core integrity fell below 50% 1132 | -9/Mines | Destroyed 19 combat bots 1135 | -9/Mines | Lost 4 parts (1p2n1w) 1160 | -9/Mines | Discovered new exit (range 7) 1299 | -9/Mines | Entered Materials 1299 | -8/Materials | Evolved 2 slots: Propulsion x1, Utility x1 1720 | -8/Materials | Crushed by falling debris 1751 | -8/Materials | Lost 3 parts (1p1n1u) 1866 | -8/Materials | Discovered new exit (range 14) 1909 | -8/Materials | Entered Factory 1909 | -7/Factory | Evolved 2 slots: Utility x1, Weapon x1 2103 | -7/Factory | Identified exit to DSF 2103 | -7/Factory | Entered DSF 2127 | -7/DSF | Additional patrols routed to DSF 2143 | -7/DSF | Discovered new exit (range 15) 2157 | -7/DSF | Entered Factory 2157 | -6/Factory | Evolved 2 slots: Power x1, Propulsion x1 2186 | -6/Factory | Build established: Sprinter 2196 | -6/Factory | Discovered new exit (range 12) 2228 | -6/Factory | Entered another Factory area 2228 | -5/Factory | Evolved 2 slots: Propulsion x1, Utility x1 2529 | -5/Factory | Discovered new exit (range 6) 2530 | -5/Factory | Entered another Factory area 2530 | -4/Factory | Evolved 2 slots: Utility x2 2606 | -4/Factory | Repaired Adv. ECM Suite 2620 | -4/Factory | Spotted B-86 Titan 2716 | -4/Factory | Sucked down chute 2716 | -4/Factory | Entered Waste 2727 | -4/Waste | Spotted C-40 Crusher 2731 | -4/Waste | EMP discharged 2731 | -4/Waste | System corruption reached 10% 2736 | -4/Waste | Crushed by Compactor (0 parts destroyed, 1 dropped) 2738 | -4/Waste | Spotted C-40 Crusher 2739 | -4/Waste | Spotted C-40 Crusher 2739 | -4/Waste | Spotted C-40 Crusher 2739 | -4/Waste | Spotted C-40 Crusher 2740 | -4/Waste | Spotted C-40 Crusher 2747 | -4/Waste | Crushed by Compactor (1 part destroyed, 1 dropped) 2755 | -4/Waste | Released all parts (9) 2778 | -4/Waste | Lost 3 parts (1p2n) 2827 | -4/Waste | Discovered new exit (range 16) 2831 | -4/Waste | EMP discharged 2834 | -4/Waste | Entered Factory 2873 | -4/Factory | Discovered new exit (range 7) 2890 | -4/Factory | Entered Research 2890 | -3/Research | Evolved 2 slots: Utility x1, Weapon x1 3001 | -3/Research | Core integrity fell below 50% 3006 | -3/Research | Lost 6 parts (2p3n1u) 3057 | -3/Research | Build established: Mutant 3115 | -3/Research | Core integrity fell below 20% 3130 | -3/Research | Destroyed by S-43 Plague with Heavy Machine Gun Last Messages --------------- 03007_ Slammed into Y-72 Warden. 03008_ Penetrated by Slug. 03008_ Slug penetrates Wall. 03047_ Penetrated by Slug. 03047_ Slug penetrates Wall. 03047_ Critical hit (Burn: +37). 03049_ Imp. Heavy Siege Treads destroyed. 03114_ O-24 Administrator: "IFF HANDSHAKE FAILED. SECURING TERMINAL." 03118_ Slammed into S-43 Plague. 03122_ C-30 ARC bursts open, deploying its payload. 03122_ G-73 Enforcer unfolds itself. 03122_ G-67 Veteran unfolds itself. 03128_ Connecting with Terminal... >>Alert(Purge) Purged threat record, alert level lowered. 03129_ O-24 Administrator uses terminal to summon reinforcements. 03129_ ALERT: Hostiles spotted, dispatching reinforcements to Terminal R012. 03129_ O-24 Administrator locks terminal. 03130_ Slammed into S-43 Plague. Map ----- +----------------------------------------------------+ | ?????????????????????????????????????????????????? | | ?????????????????????????????????????????????????? | | ?????????????????????????????????????????????????? | | ?????????????????????????????????????????????????? | | ?????????????????????????????????????????????????? | | ?????????????????????????????????????????????????? | | ?????????????????????????????????????????????????? | | ?????????????????????????????????????????????????? | | ?????????????????????????????????????????????????? | | ?????????????????????????????????????????????????? | | ?????????????????????????????????????????????????? | | ???????????????????????????? ? ???????##???? | | ??????????????????????????? #?????? ???? | | ??????????????????????????? #????? ???? | | ???????????????????????????" #????? """?? | | ??????????????????????????"" #??? """ ? | | ??????????????????????????"" # """ ? | | ?????????????????????????#G ! # ? | | ?????????????????????????#"" g # | | ?????????????????????????#"" # """ """ | | ?????????????????????????#"" # """ """ | | ????????????????########## """ # """ """ ? | | ????????????????# # """ # ??? | | ????????????????# # """ #?? ????? | | ????????????????# # #####+####### | | ????????????????# @sgg | | ????????????????# "o" s#s g% | | ????????????????# "T" # | | ????????????????# """ # ### | | ????????????????# # ########## ####+# | | ????????????????# # # ?????# #????? | | ????????????????########## # ?????# #????? | | ?????????????????????????# g# ?????# #????? | | ?????????????????????????# # ?????# #????? | | ?????????????????????????# ##+####### #??### | | ?????????????????????????# #? | | ????????????????????#######/####+####### #? | | ????????????????????# #????# # "" | | ????????????????????# #????# # "" | | ????????????????????# """ """ #????# + "" | | ????????????????????# """ """ #????# # "" | | ????????????????????# """ """ #????# # "" | | ????????????????????# """ """ #????# #? | | ????????????????????# """ """ #????# #? | | ????????????????????# """ """ #????# #??### | | ????????????????????# #????# ###### | | ????????????????????# #????# | | ????????????????????# #????# | | ????????????????????#################??# | | ????????????????????????????????? """ ?# | +----------------------------------------------------+ Best States ------------- Heat Dissipation 46 Energy Generation 33 Energy Capacity 250 Matter Stores 300 Matter Capacity 300 Sight Range 22 Robot Scan Range 15 Terrain Scan Range 16 Terrain Scan Density 10 ECM Strength 2 Jamming Range 12 Armor Coverage 150 Resistance: KI 20 Propulsion Shielding 66 Evasion (%) 64 Targeting Accuracy 8 Recoil Reduction 2 Offensive Hacking 10 Item Schematics ----------------- Imp. VTOL Module | -8/Materials | Scanalyzed Mic. Nuclear Core | -7/Factory | Scanalyzed Imp. Propulsion Shielding | -6/Factory | Scanalyzed ECM Suite | -6/Factory | Scanalyzed Impulse Thruster | -4/Factory | Scanalyzed Remote Force Field | -4/Factory | Scanalyzed Robot Schematics ------------------ None Fabricated ------------ Nothing Alien Tech Used ----------------- None Achievements -------------- Exterminator Quick And Dirty Streaker Challenges ------------ None Game ------ Seed BurstColdArticulator Manual? 0 Play Time 02:40:22 Cumulative 126.6 hours Start 2024.08.26 @ 06:57:15 End 2024.08.27 @ 18:29:17 Sessions 9 Manual Loads 0 Difficulty Rogue Special Mode None Game No. 134 Rogue 134 Adventurer 0 Explorer 0 Win Type - Total 0 Types 0/0/0/0/0/0/0/0/0 Lore% 13 Gallery% 36 Achievement% 30 Wizard Run 0 Options --------- Layout 0 ASCII 0 Keyboard 0 Movement Mouse Keybinds 0 Fullscreen 1 Font 24/Smallcaps Map View 76x50 Zoom Use 0% Tactical HUD 1 Map Filters NONE Filters NONE Steam 1 RUN: 30b50841-a35e-4922-be15-b0b97c29d2cf